fUST/lending_fUST_20240712
["ID","MTS","AMOUNT","RATE_DAILY","PERIOD"]
[331844910,1720792247119,-1239.1,0.00027397,7]
[331844912,1720792247128,-631.71,0.00027397,7]
[331844914,1720792247139,-535.51,0.00027397,7]
[331844916,1720792247148,-1239.1,0.00027397,7]
[331844918,1720792247157,-1239.1,0.00027397,7]
[331844920,1720792247167,-1239.1,0.00027397,7]
[331844922,1720792247176,-1239.1,0.00027397,7]
[331844924,1720792247186,-1239.1,0.00027397,7]
[331844926,1720792247198,-1239.1,0.00027397,7]
[331844928,1720792247208,-1239.1,0.00027397,7]
[331844930,1720792247217,-1239.1,0.00027397,7]
[331844932,1720792247226,-500.0,0.00027397,7]
[331844934,1720792247236,-1239.1,0.00027397,7]
[331844936,1720792247246,-1239.1,0.00027397,7]
[331844938,1720792247255,-500.0,0.00027397,7]
[331844940,1720792247265,-985.33,0.00027397,7]
[331844942,1720792247274,-500.0,0.00027397,7]
[331844944,1720792247284,-500.0,0.00027397,7]
[331844946,1720792247293,-508.24,0.00027397,7]
[331844948,1720792247303,-500.0,0.00027397,7]
[331844950,1720792247312,-500.0,0.00027397,7]
[331844952,1720792247325,-502.87580366,0.00027397,7]
[331844954,1720792247335,-505.01860427,0.00027397,7]
[331844956,1720792247344,-500.0,0.00027397,7]
[331844958,1720792247354,-500.0,0.00027397,7]
[331844960,1720792247364,-500.0,0.00027397,7]
[331844962,1720792247374,-598.71,0.00027397,7]
[331844964,1720792247383,-500.0,0.00027397,7]
[331844966,1720792247394,-500.0,0.00027397,7]
[331844968,1720792247404,-500.0,0.00027397,7]
[331844970,1720792247414,-500.0,0.00027397,7]
[331844972,1720792247424,-500.0,0.00027397,7]
[331844988,1720792247563,-500.0,0.00027397,7]
[331844990,1720792247573,-500.0,0.00027397,7]
[331844992,1720792247582,-500.0,0.00027397,2]
[331844994,1720792247592,-500.0,0.00027397,2]
[331844996,1720792247601,-465.91464053,0.00027397,2]
[331844998,1720792247611,-500.0,0.00027397,7]
[331845000,1720792247621,-500.0,0.00027397,7]
[331845002,1720792247630,-500.0,0.00027397,7]
[331845004,1720792247640,-595.7,0.00027397,7]
[331845006,1720792247651,-521.74,0.00027397,7]
[331845008,1720792247661,-600.25,0.00027397,7]
[331845010,1720792247670,-699.63,0.00027397,7]
[331845012,1720792247680,-500.0,0.00027397,7]
[331845014,1720792247691,-892.39,0.00027397,7]
[331845016,1720792247701,-500.0,0.00027397,7]
[331845018,1720792247711,-500.0,0.00027397,7]
[331845020,1720792247720,-500.0,0.00027397,7]
[331845022,1720792247728,-600.56,0.00027397,7]
[331845024,1720792247739,-3910.46,0.00027397,7]
[331845026,1720792247748,-273.9643846,0.00027397,7]
[331845028,1720792247758,-500.0,0.00027397,7]
[331845030,1720792247767,-629.29,0.00027397,7]
[331845032,1720792247777,-500.0,0.00027397,7]
[331845035,1720792247787,-513.17,0.00027397,7]
[331845036,1720792247796,-613.59,0.00027397,7]
[331845038,1720792247805,-681.83,0.00027397,7]
[331845040,1720792247814,-500.0,0.00027397,7]
[331845042,1720792247823,-500.0,0.00027397,7]
[331845044,1720792247833,-716.61,0.00027397,7]
[331845047,1720792247843,-500.0,0.00027397,7]
[331845049,1720792247853,-663.06,0.00027397,7]
[331845051,1720792247863,-500.0,0.00027397,7]
[331845053,1720792247873,-526.7,0.00027397,7]
[331845055,1720792247882,-264.654812,0.00027397,7]
[331845057,1720792247891,-505.55208875,0.00027397,7]
[331845059,1720792247901,-273.83295639,0.00027397,7]
[331845061,1720792247911,-977.34,0.00027397,7]
[331845063,1720792247921,-500.0,0.00027397,2]
[331845065,1720792247930,-500.0,0.00027397,7]
[331845067,1720792247943,-500.0,0.00027397,7]
[331845069,1720792247953,-500.0,0.00027397,7]
[331845071,1720792247962,-195.0263,0.00027397,7]
[331845072,1720792247971,-500.0,0.00027397,7]
[331845075,1720792247981,-500.0,0.00027397,7]
[331845077,1720792247990,-500.0,0.00027397,7]
[331845079,1720792248000,-500.0,0.00027397,7]
[331845081,1720792248009,-1000.0,0.00027397,7]
[331845083,1720792248018,-500.0,0.00027397,7]
[331845085,1720792248028,-171.56318441,0.00027397,7]
[331845087,1720792248037,-500.0,0.00027397,7]
[331845089,1720792248047,-500.0,0.00027397,7]
[331845090,1720792248056,-912.86,0.00027397,7]
[331845092,1720792248065,-512.03474935,0.00027397,7]
[331845094,1720792248075,-606.63,0.00027397,7]
[331845096,1720792248084,-500.0,0.00027397,7]
[331845098,1720792248095,-500.0,0.00027397,7]
[331845100,1720792248104,-200.0,0.00027397,7]
[331845102,1720792248114,-588.65,0.00027397,7]
[331845104,1720792248123,-500.0,0.00027397,7]
[331845106,1720792248133,-500.0,0.00027397,7]
[331845109,1720792248143,-500.0,0.00027397,7]
[331845110,1720792248152,-500.0,0.00027397,7]
[331845112,1720792248162,-500.0,0.00027397,7]
[331845115,1720792248171,-511.08076284,0.00027397,7]
[331845116,1720792248181,-500.0,0.00027397,7]
[331845118,1720792248193,-500.0,0.00027397,7]
[331845120,1720792248202,-590.34,0.00027397,7]
[331845122,1720792248212,-500.0,0.00027397,7]
[331845124,1720792248221,-500.0,0.00027397,7]
[331845126,1720792248230,-500.0,0.00027397,7]
[331845128,1720792248240,-500.0,0.00027397,7]
[331845131,1720792248250,-540.16,0.00027397,7]
[331845132,1720792248260,-500.0,0.00027397,7]
[331845135,1720792248270,-500.0,0.00027397,7]
[331845136,1720792248280,-500.0,0.00027397,7]
[331845138,1720792248290,-500.0,0.00027397,7]
[331845140,1720792248300,-500.0,0.00027397,7]
[331845142,1720792248309,-500.0,0.00027397,7]
[331845145,1720792248319,-500.0,0.00027397,7]
[331845147,1720792248332,-697.89,0.00027397,7]
[331845148,1720792248341,-500.0,0.00027397,7]
[331845151,1720792248351,-697.89,0.00027397,7]
[331845153,1720792248362,-500.0,0.00027397,7]
[331845155,1720792248373,-500.0,0.00027397,7]
[331845157,1720792248383,-697.89,0.00027397,7]
[331845158,1720792248392,-500.0,0.00027397,7]
[331845161,1720792248404,-500.0,0.00027397,7]
[331845163,1720792248416,-697.89,0.00027397,7]
[331845165,1720792248425,-627.99568672,0.00027397,7]
[331845166,1720792248435,-697.89,0.00027397,7]
[331845169,1720792248448,-697.89,0.00027397,7]
[331845170,1720792248457,-697.89,0.00027397,7]
[331845172,1720792248466,-697.89,0.00027397,7]
[331845174,1720792248475,-697.89,0.00027397,7]
[331845176,1720792248485,-697.89,0.00027397,7]
[331845178,1720792248494,-500.0,0.00027397,7]
[331845180,1720792248504,-697.89,0.00027397,7]
[331845182,1720792248515,-567.13,0.00027397,7]
[331845184,1720792248526,-697.89,0.00027397,7]
[331845185,1720792248535,-500.0,0.00027397,7]
[331845186,1720792248545,-697.89,0.00027397,7]
[331845187,1720792248555,-500.0,0.00027397,7]
[331845188,1720792248566,-697.89,0.00027397,7]
[331845189,1720792248575,-697.89,0.00027397,7]
[331845190,1720792248584,-697.89,0.00027397,7]
[331845191,1720792248594,-500.0,0.00027397,7]
[331845192,1720792248604,-500.0,0.00027397,7]
[331845193,1720792248614,-697.89,0.00027397,7]
[331845194,1720792248624,-697.89,0.00027397,7]
[331845195,1720792248634,-697.89,0.00027397,7]
[331845196,1720792248643,-697.89,0.00027397,7]
[331845197,1720792248652,-697.89,0.00027397,7]
[331845198,1720792248662,-697.89,0.00027397,7]
[331845199,1720792248671,-697.89,0.00027397,7]
[331845200,1720792248680,-500.0,0.00027397,7]
[331845201,1720792248691,-697.89272653,0.00027397,7]
[331845202,1720792248701,-500.0,0.00027397,7]
[331845203,1720792248711,-500.0,0.00027397,7]
[331845205,1720792248721,-500.0,0.00027397,7]
[331845207,1720792248731,-500.0,0.00027397,7]
[331845209,1720792248741,-781.52,0.00027397,2]
[331845211,1720792248751,-500.0,0.00027397,7]
[331845213,1720792248760,-500.0,0.00027397,7]
[331845215,1720792248770,-1898.9,0.00027397,7]
[331845217,1720792248780,-500.0,0.00027397,7]
[331845219,1720792248789,-500.0,0.00027397,7]
[331845221,1720792248799,-500.0,0.00027397,7]
[331845223,1720792248809,-500.0,0.00027397,7]
[331845225,1720792248819,-209.99997917,0.00027397,7]
[331845227,1720792248828,-500.0,0.00027397,7]
[331845229,1720792248838,-500.0,0.00027397,7]
[331845231,1720792248847,-500.0,0.00027397,7]
[331845233,1720792248856,-778.8,0.00027397,7]
[331845235,1720792248866,-638.05591686,0.00027397,7]
[331845237,1720792248876,-500.0,0.00027397,7]
[331845239,1720792248886,-500.0,0.00027397,7]
[331845241,1720792248896,-721.85,0.00027397,7]
[331845243,1720792248906,-500.0,0.00027397,7]
[331845245,1720792248916,-506.76177843,0.00027397,7]
[331845247,1720792248925,-500.0,0.00027397,7]
[331845249,1720792248936,-500.0,0.00027397,7]
[331845251,1720792248950,-500.0,0.00027397,7]
[331845254,1720792248961,-500.0,0.00027397,7]
[331845256,1720792248971,-662.3,0.00027397,7]
[331845258,1720792248984,-529.39682093,0.00027397,7]
[331845259,1720792248993,-504.99629049,0.00027397,7]
[331845261,1720792249002,-920.8,0.00027397,7]
[331845263,1720792249012,-565.54,0.00027397,7]
[331845265,1720792249022,-500.0,0.00027397,7]
[331845267,1720792249031,-500.0,0.00027397,7]
[331845269,1720792249040,-562.11,0.00027397,7]
[331845271,1720792249051,-500.0,0.00027397,7]
[331845273,1720792249061,-500.0,0.00027397,7]
[331845276,1720792249073,-552.3,0.00027397,7]
[331845278,1720792249082,-500.0,0.00027397,7]
[331845280,1720792249092,-407.4024122,0.00027397,7]
[331845310,1720792249391,-92.5975878,0.00027397,7]
[331845312,1720792249403,-500.0,0.00027397,7]
[331845314,1720792249415,-1249.31,0.00027397,7]
[331845316,1720792249425,-515.1395967,0.00027397,7]
[331845319,1720792249435,-517.1,0.00027397,7]
[331845321,1720792249448,-1253.26,0.00027397,7]
[331845323,1720792249458,-500.0,0.00027397,7]
[331845324,1720792249468,-500.0,0.00027397,7]
[331845327,1720792249479,-500.0,0.00027397,7]
[331845328,1720792249489,-134.0928155,0.00027397,7]
[331845396,1720792250136,500.0,0.0002525,120]
[331845940,1720792271930,399.795276,0.0002525,120]
[331845961,1720793157124,-194.25630589,0.00021096,2]
[331845976,1720793353173,-150.0,0.00018996,2]
[331845977,1720793353200,-90.93628211,0.00021096,2]
[331845978,1720793353222,-492.90786688,0.0002243,2]
[331845979,1720793353244,-266.15585101,0.00022842,2]
[331845980,1720793362107,-509.46167846,0.00022842,2]
[331845983,1720793415195,38.62529412,0.00021096,2]
[331846125,1720793432929,-248.31124588,0.00021096,2]
[331846127,1720793432938,-168.0,0.00023,2]
[331846129,1720793432948,-3006.70032912,0.00023455,2]
[331846175,1720793438536,-362.05717382,0.00023455,2]
[331846176,1720793438626,-26631.24249706,0.00023455,2]
[331846177,1720793438635,-880.59014626,0.00024481,2]
[331846178,1720793438644,-979.69908413,0.00024481,2]
[331846179,1720793438654,-3318.01082722,0.00025,2]
[331846180,1720793438666,-2000.0,0.00025186,2]
[331846181,1720793438681,-2000.0,0.00025195,2]
[331846182,1720793438692,-2000.0,0.00025204,2]
[331846183,1720793438703,-150.0,0.00025219,2]
[331846184,1720793438714,-503.0,0.00025219,2]
[331846185,1720793438723,-261.12755317,0.00025501,2]
[331846186,1720793438733,-2074.65,0.00025501,2]
[331846187,1720793438742,-152.71751146,0.00025514,2]
[331846188,1720793438752,-150.42453828,0.00025525,2]
[331846189,1720793438761,-153.38202046,0.0002553,2]
[331846190,1720793438771,-154.59445059,0.00025612,2]
[331846191,1720793438781,-425.28387071,0.00025664,2]
[331846192,1720793438790,-425.28387071,0.00025691,2]
[331846193,1720793438801,-157.86002724,0.00025708,2]
[331846194,1720793438810,-545.0317489,0.00025778,2]
[331846195,1720793438820,-775.61752943,0.0002585,2]
[331846196,1720793438830,-199.70961869,0.00025863,2]
[331846197,1720793438840,-260.51865148,0.00025902,2]
[331846198,1720793438850,-150.42453828,0.00025973,2]
[331846199,1720793438860,-153.79107762,0.00026001,2]
[331846200,1720793438869,-154.59445059,0.00026003,2]
[331846202,1720793438878,-199.70961869,0.00026039,2]
[331846204,1720793438888,-199.70961869,0.00026065,2]
[331846206,1720793438898,-545.0317489,0.00026127,2]
[331846209,1720793438909,-199.70961869,0.00026154,2]
[331846210,1720793438920,-150.42453828,0.00026176,2]
[331846212,1720793438932,-545.0317489,0.00026261,2]
[331846215,1720793438943,-425.28387071,0.00026281,2]
[331846217,1720793438953,-150.42453828,0.00026352,2]
[331846219,1720793438964,-199.70961869,0.00026376,2]
[331846221,1720793438974,-153.38202046,0.00026447,2]
[331846223,1720793438983,-3000.0,0.000265,2]
[331846225,1720793438993,-3000.0,0.0002651,2]
[331846227,1720793439003,-3000.0,0.0002652,2]
[331846228,1720793439012,-3000.0,0.0002653,2]
[331846230,1720793439022,-3000.0,0.0002654,2]
[331846232,1720793439032,-154.59445059,0.00026546,2]
[331846234,1720793439041,-3000.0,0.0002655,2]
[331846236,1720793439050,-3000.0,0.0002656,2]
[331846238,1720793439060,-3000.0,0.0002657,2]
[331846240,1720793439070,-3000.0,0.0002658,2]
[331846242,1720793439079,-3000.0,0.0002659,2]
[331846244,1720793439090,-3000.0,0.000266,2]
[331846246,1720793439099,-611.0,0.000266,2]
[331846248,1720793439110,-1917.84581521,0.00026602,2]
[331846250,1720793439119,-3000.0,0.0002661,2]
[331846252,1720793439129,-3000.0,0.0002662,2]
[331846254,1720793439139,-1933.76,0.0002662,3]
[331846256,1720793439148,-1817.89,0.0002662,3]
[331846258,1720793439158,-1514.91,0.0002662,3]
[331846260,1720793439169,-3000.0,0.0002663,2]
[331846262,1720793439179,-14327.9049749,0.0002663,3]
[331846264,1720793439189,-3000.0,0.0002664,2]
[331846266,1720793439199,-3000.0,0.0002665,2]
[331846269,1720793439210,-3000.0,0.0002666,2]
[331846271,1720793439219,-3000.0,0.0002667,2]
[331846273,1720793439229,-3000.0,0.0002668,2]
[331846275,1720793439239,-3000.0,0.0002669,2]
[331846277,1720793439250,-3000.0,0.000267,2]
[331846279,1720793439261,-199.70961869,0.00026704,2]
[331846281,1720793439270,-3000.0,0.0002671,2]
[331846283,1720793439281,-153.79107762,0.00026711,2]
[331846285,1720793439290,-3000.0,0.0002672,2]
[331846287,1720793439302,-3000.0,0.0002673,2]
[331846289,1720793439312,-3000.0,0.0002674,2]
[331846291,1720793439322,-3000.0,0.0002675,2]
[331846293,1720793439332,-3000.0,0.0002676,2]
[331846318,1720793439523,-425.28387071,0.0002676,2]
[331846320,1720793439533,-154.59445059,0.00026765,2]
[331846322,1720793439543,-3000.0,0.0002677,2]
[331846325,1720793439552,-3000.0,0.0002678,2]
[331846327,1720793439562,-14327.9049749,0.0002678,3]
[331846330,1720793439571,-3000.0,0.0002679,2]
[331846332,1720793439582,-3000.0,0.000268,2]
[331846334,1720793439592,-3000.0,0.0002681,2]
[331846336,1720793439602,-3000.0,0.0002682,2]
[331846338,1720793439612,-3000.0,0.0002683,2]
[331846340,1720793439622,-157.86002724,0.00026839,2]
[331846342,1720793439632,-3000.0,0.0002684,2]
[331846345,1720793439642,-3000.0,0.0002685,2]
[331846347,1720793439651,-425.28387071,0.0002685,2]
[331846349,1720793439661,-3000.0,0.0002686,2]
[331846351,1720793439675,-3000.0,0.0002687,2]
[331846352,1720793439685,-3000.0,0.0002688,2]
[331846355,1720793439695,-3000.0,0.0002689,2]
[331846357,1720793439707,-4025.586431,0.000269,2]
[331846359,1720793439719,-545.0317489,0.00026906,2]
[331846361,1720793439728,-154.59445059,0.00026946,2]
[331846363,1720793439739,-1000.0,0.00027,27]
[331846365,1720793439752,-150.42453828,0.00027099,2]
[331846367,1720793439762,-152.71751146,0.00027172,2]
[331846369,1720793439771,-518.35879952,0.00027184,4]
[331846371,1720793439781,-286.93654,0.00027195,2]
[331846373,1720793439791,-157.86002724,0.00027227,2]
[331846375,1720793439801,-153.38202046,0.00027233,2]
[331846377,1720793439811,-374.0,0.000273,2]
[331846379,1720793439821,-748.0,0.000273,2]
[331846381,1720793439831,-479.0,0.000273,2]
[331846383,1720793439841,-152.71751146,0.00027306,2]
[331846385,1720793439850,-150.5,0.00027367,62]
[331846387,1720793439860,-150.5,0.00027367,62]
[331846389,1720793439870,-150.5,0.00027377,62]
[331846391,1720793439879,-150.5,0.00027377,62]
[331846393,1720793439889,-14327.9049749,0.00027384,3]
[331846395,1720793439899,-512.27,0.00027386,2]
[331846397,1720793439908,-157606.954724,0.00027387,3]
[331846399,1720793439920,-150.5,0.00027387,62]
[331846401,1720793439930,-150.5,0.00027387,62]
[331846403,1720793439940,-150.5,0.00027387,62]
[331846405,1720793439949,-14327.9049749,0.00027388,3]
[331846407,1720793439959,-216.51875171,0.00027389,2]
[331846409,1720793439969,-500.0,0.00027389,2]
[331846411,1720793439980,-301.32138885,0.00027389,2]
[331846413,1720793439990,-357.02872312,0.00027389,2]
[331846415,1720793440000,-500.0,0.00027389,2]
[331846417,1720793440010,-500.0,0.00027389,2]
[331846419,1720793440020,-500.0,0.00027389,2]
[331846422,1720793440030,-500.0,0.00027389,2]
[331846424,1720793440040,-297.20074816,0.00027389,2]
[331846426,1720793440050,-500.0,0.00027389,2]
[331846428,1720793440060,-500.0,0.00027389,2]
[331846430,1720793440070,-500.0,0.00027389,2]
[331846432,1720793440081,-500.0,0.00027389,2]
[331846434,1720793440091,-500.0,0.00027389,2]
[331846436,1720793440101,-500.0,0.00027389,2]
[331846438,1720793440112,-500.0,0.00027389,2]
[331846440,1720793440122,-251.26865967,0.00027389,2]
[331846442,1720793440132,-500.0,0.00027389,2]
[331846444,1720793440142,-500.0,0.00027389,2]
[331846446,1720793440152,-189.40388399,0.00027389,2]
[331846448,1720793440162,-500.0,0.00027389,2]
[331846450,1720793440173,-500.0,0.00027389,2]
[331846452,1720793440183,-500.0,0.00027389,2]
[331846454,1720793440193,-517.17401663,0.00027389,2]
[331846456,1720793440202,-500.0,0.00027389,2]
[331846458,1720793440212,-500.0,0.00027389,2]
[331846460,1720793440222,-500.0,0.00027389,2]
[331846462,1720793440232,-500.0,0.00027389,2]
[331846464,1720793440242,-500.0,0.00027389,2]
[331846466,1720793440251,-500.0,0.00027389,2]
[331846468,1720793440261,-500.0,0.00027389,2]
[331846470,1720793440270,-500.0,0.00027389,2]
[331846472,1720793440280,-300.0,0.00027389,2]
[331846474,1720793440290,-500.0,0.00027389,2]
[331846476,1720793440300,-500.0,0.00027389,2]
[331846478,1720793440309,-500.0,0.00027389,2]
[331846480,1720793440320,-450.0,0.00027389,2]
[331846482,1720793440330,-247.10722546,0.00027389,2]
[331846484,1720793440340,-3394.11389557,0.00027394,7]
[331846486,1720793440350,-9620.58232022,0.00027397,5]
[331846488,1720793440360,-633.62053362,0.00027397,5]
[331846491,1720793440372,-500.0,0.00027397,7]
[331846493,1720793440382,-515.04683079,0.00027397,7]
[331846495,1720793440391,-500.0,0.00027397,2]
[331846497,1720793440401,-500.0,0.00027397,7]
[331846499,1720793440411,-500.0,0.00027397,7]
[331846501,1720793440423,-534.55107674,0.00027397,7]
[331846503,1720793440432,-500.0,0.00027397,7]
[331846505,1720793440441,-500.0,0.00027397,7]
[331846507,1720793440451,-500.0,0.00027397,7]
[331846509,1720793440460,-512.02,0.00027397,7]
[331846511,1720793440470,-515.81,0.00027397,7]
[331846513,1720793440479,-500.0,0.00027397,7]
[331846515,1720793440488,-500.0,0.00027397,7]
[331846516,1720793440498,-538.02,0.00027397,7]
[331846519,1720793440508,-500.0,0.00027397,7]
[331846520,1720793440518,-542.69938018,0.00027397,7]
[331846522,1720793440528,-500.0,0.00027397,7]
[331846524,1720793440537,-500.0,0.00027397,7]
[331846526,1720793440547,-500.0,0.00027397,7]
[331846528,1720793440556,-500.0,0.00027397,7]
[331846530,1720793440566,-500.0,0.00027397,7]
[331846532,1720793440576,-1717.01,0.00027397,7]
[331846534,1720793440585,-500.0,0.00027397,7]
[331846536,1720793440595,-500.0,0.00027397,7]
[331846538,1720793440604,-860.36,0.00027397,7]
[331846540,1720793440614,-500.0,0.00027397,7]
[331846543,1720793440624,-511.53235239,0.00027397,7]
[331846545,1720793440634,-500.0,0.00027397,7]
[331846547,1720793440646,-500.0,0.00027397,7]
[331846548,1720793440655,-173.20544178,0.00027397,7]
[331846551,1720793440665,-500.0,0.00027397,7]
[331846553,1720793440680,-472.73231634,0.00027397,7]
[331846555,1720793440690,-500.0,0.00027397,7]
[331846557,1720793440699,-500.0,0.00027397,7]
[331846559,1720793440710,-500.0,0.00027397,7]
[331846561,1720793440720,-500.0,0.00027397,7]
[331846563,1720793440730,-502.77039481,0.00027397,7]
[331846565,1720793440740,-500.0,0.00027397,7]
[331846567,1720793440751,-500.0,0.00027397,7]
[331846569,1720793440761,-500.0,0.00027397,7]
[331846571,1720793440771,-500.0,0.00027397,7]
[331846573,1720793440780,-500.0,0.00027397,7]
[331846575,1720793440790,-500.0,0.00027397,7]
[331846577,1720793440799,-535.2976363,0.00027397,7]
[331846578,1720793440809,-507.93933676,0.00027397,7]
[331846579,1720793440819,-500.0,0.00027397,7]
[331846580,1720793440828,-632.37204118,0.00027397,7]
[331846581,1720793440839,-979.21,0.00027397,7]
[331846582,1720793440848,-500.0,0.00027397,7]
[331846583,1720793440858,-500.0,0.00027397,7]
[331846584,1720793440867,-500.0,0.00027397,7]
[331846585,1720793440876,-500.0,0.00027397,7]
[331846586,1720793440886,-500.0,0.00027397,7]
[331846588,1720793440896,-500.0,0.00027397,7]
[331846589,1720793440905,-500.0,0.00027397,7]
[331846591,1720793440914,-511.29124556,0.00027397,7]
[331846592,1720793440926,-500.0,0.00027397,7]
[331846593,1720793440935,-500.0,0.00027397,7]
[331846594,1720793440945,-500.0,0.00027397,7]
[331846595,1720793440954,-500.0,0.00027397,7]
[331846596,1720793440964,-500.0,0.00027397,7]
[331846597,1720793440974,-507.55428486,0.00027397,7]
[331846598,1720793440983,-500.0,0.00027397,7]
[331846599,1720793440993,-694.79,0.00027397,7]
[331846601,1720793441002,-500.0,0.00027397,7]
[331846603,1720793441012,-183.38071513,0.00027397,7]
[331846605,1720793441022,-534.45744966,0.00027397,7]
[331846607,1720793441031,-500.0,0.00027397,7]
[331846609,1720793441040,-500.0,0.00027397,3]
[331846611,1720793441051,-500.0,0.00027397,7]
[331846613,1720793441060,-500.0,0.00027397,7]
[331846615,1720793441070,-500.0,0.00027397,7]
[331846617,1720793441079,-500.0,0.00027397,7]
[331846619,1720793441089,-519.36,0.00027397,7]
[331846621,1720793441099,-500.0,0.00027397,7]
[331846623,1720793441108,-500.0,0.00027397,7]
[331846625,1720793441118,-500.0,0.00027397,7]
[331846627,1720793441127,-324.9269038,0.00027397,7]
[331846629,1720793441137,-504.85726421,0.00027397,7]
[331846631,1720793441146,-620.18,0.00027397,7]
[331846633,1720793441155,-500.0,0.00027397,7]
[331846635,1720793441165,-500.0,0.00027397,7]
[331846636,1720793441175,-500.0,0.00027397,7]
[331846639,1720793441185,-500.0,0.00027397,7]
[331846641,1720793441195,-500.0,0.00027397,7]
[331846643,1720793441204,-551.73849338,0.00027397,7]
[331846645,1720793441214,-500.0,0.00027397,7]
[331846647,1720793441223,-500.0,0.00027397,7]
[331846649,1720793441232,-500.0,0.00027397,7]
[331846651,1720793441242,-500.0,0.00027397,7]
[331846652,1720793441251,-500.0,0.00027397,7]
[331846654,1720793441260,-516.06987851,0.00027397,7]
[331846656,1720793441270,-500.0,0.00027397,7]
[331846658,1720793441279,-500.0,0.00027397,7]
[331846660,1720793441289,-500.0,0.00027397,7]
[331846663,1720793441298,-500.0,0.00027397,7]
[331846665,1720793441308,-500.0,0.00027397,7]
[331846666,1720793441317,-500.0,0.00027397,7]
[331846668,1720793441326,-500.0,0.00027397,7]
[331846671,1720793441336,-500.0,0.00027397,7]
[331846672,1720793441345,-500.0,0.00027397,7]
[331846674,1720793441354,-500.0,0.00027397,7]
[331846676,1720793441364,-500.0,0.00027397,7]
[331846678,1720793441374,-500.0,0.00027397,7]
[331846681,1720793441383,-503.83892173,0.00027397,7]
[331846683,1720793441393,-500.0,0.00027397,7]
[331846685,1720793441403,-500.0,0.00027397,2]
[331846687,1720793441412,-622.58,0.00027397,7]
[331846689,1720793441425,-500.0,0.00027397,7]
[331846691,1720793441435,-500.0,0.00027397,3]
[331846693,1720793441447,-500.0,0.00027397,7]
[331846695,1720793441456,-500.0,0.00027397,7]
[331846697,1720793441465,-500.0,0.00027397,7]
[331846699,1720793441475,-500.0,0.00027397,7]
[331846701,1720793441484,-500.0,0.00027397,7]
[331846703,1720793441494,-500.0,0.00027397,7]
[331846705,1720793441504,-514.87731232,0.00027397,7]
[331846707,1720793441513,-500.0,0.00027397,7]
[331846709,1720793441523,-535.23,0.00027397,7]
[331846711,1720793441533,-906.71,0.00027397,7]
[331846713,1720793441543,-530.47802318,0.00027397,7]
[331846715,1720793441552,-500.0,0.00027397,7]
[331846717,1720793441561,-500.0,0.00027397,7]
[331846719,1720793441571,-500.0,0.00027397,7]
[331846721,1720793441581,-500.0,0.00027397,7]
[331846723,1720793441591,-500.0,0.00027397,7]
[331846725,1720793441601,-524.5701232,0.00027397,7]
[331846727,1720793441611,-500.0,0.00027397,7]
[331846729,1720793441620,-658.03,0.00027397,7]
[331846731,1720793441630,-500.0,0.00027397,7]
[331846733,1720793441639,-500.0,0.00027397,7]
[331846735,1720793441649,-889.36,0.00027397,7]
[331846737,1720793441659,-500.0,0.00027397,7]
[331846739,1720793441672,-500.0,0.00027397,7]